bitfinex/quotes_ETHUSD_20250629
["timestamp","ask_amount","ask_price","bid_price","bid_amount"]
[1751199628420,10.2052,2456.5,2455.4,24.37840065]
[1751199628421,0.7938,2455.5,2455.4,24.37840065]
[1751199628626,0.7938,2455.5,2455.4,22.56385618]
[1751199636391,0.7938,2455.5,2455.4,5.96985618]
[1751199636572,0.7938,2455.5,2455.4,12.56385618]
[1751199640187,0.7938,2455.5,2455.4,4.27585618]
[1751199640340,0.7938,2455.5,2455.4,10.86985618]
[1751199648707,0.7938,2455.5,2454.6,4.90112691]
[1751199648877,0.7938,2455.5,2455.3,4.07269552]
[1751199649064,0.7938,2455.5,2455.4,6.593]
[1751199649469,0.7938,2455.5,2455.4,10.66565618]
[1751199649804,0.7938,2455.5,2455.4,6.593]
[1751199650398,0.7938,2455.5,2455.2,4.07289825]
[1751199650607,0.7938,2455.5,2455.3,6.594]
[1751199651805,0.7938,2455.5,2455.3,10.66679368]
[1751199652099,0.7938,2455.5,2455.3,4.07279368]
[1751199652303,0.7938,2455.5,2455.4,6.594]
[1751199653484,0.7938,2455.5,2455.4,10.66665618]
[1751199658799,0.997,2455.5,2455.4,10.66665618]
[1751199659928,0.997,2455.5,2455.4,6.594]
[1751199660226,0.997,2455.5,2455.4,10.66665618]
[1751199660726,0.997,2455.5,2455.4,6.594]
[1751199660903,2.0969,2455.5,2455.4,6.594]
[1751199661698,2.0969,2455.5,2455.4,10.66665618]
[1751199661897,0.997,2455.5,2455.4,10.66665618]
[1751199665834,0.7938,2455.5,2455.4,10.66665618]
[1751199666033,0.002,2455.5,2455.4,10.66665618]
[1751199667127,0.002,2455.5,2455.4,11.45755618]
[1751199668013,0.002,2455.5,2455.4,21.45755618]
[1751199668212,0.002,2455.5,2455.4,24.20020486]
[1751199668603,0.002,2455.5,2455.4,24.75020486]
[1751199670606,0.002,2455.5,2455.4,40.60836786]
[1751199670805,0.002,2455.5,2455.4,28.37083986]
[1751199671406,0.002,2455.5,2455.4,28.6816297]
[1751199671840,0.002,2455.7,2455.6,15.43922448]
[1751199672045,0.002,2455.7,2455.6,24.3984614]
[1751199672430,0.002,2455.7,2455.6,24.6016614]
[1751199673235,0.002,2456.5,2455.7,10.55]
[1751199673430,0.002,2456.5,2456.4,4.0709982]
[1751199673630,0.002,2456.5,2456.4,10.8661982]
[1751199675032,0.002,2456.5,2456.4,10.8651982]
[1751199675427,0.002,2456.5,2456.4,11.45411055]
[1751199677631,0.7847,2456.5,2456.4,7.17991235]
[1751199678231,1.29054052,2456.5,2456.4,7.17991235]
[1751199678458,0.7847,2456.5,2456.4,7.17991235]
[1751199678853,0.7847,2456.5,2456.4,0.58891235]
[1751199679054,0.7847,2456.5,2456.4,7.17991235]
[1751199680273,0.7847,2456.5,2456.4,0.58891235]
[1751199680446,0.7847,2456.5,2456.4,7.17891235]
[1751199680648,1.29056413,2456.5,2456.4,7.17891235]
[1751199681158,0.7847,2456.5,2456.4,7.17891235]
[1751199682742,0.7847,2456.5,2456.4,11.24991055]
[1751199684368,0.7847,2456.5,2456.4,4.65991055]
[1751199684569,0.7847,2456.5,2456.4,0.58891235]
[1751199684761,0.7847,2456.5,2456.4,7.17891235]
[1751199685651,1.29054089,2456.5,2456.4,7.17891235]
[1751199686070,1.29054089,2456.5,2456.4,0.58891235]
[1751199686240,0.9879,2456.5,2456.4,7.17891235]
[1751199686671,5.05873248,2456.5,2456.4,0.58891235]
[1751199686869,5.05873248,2456.5,2456.4,7.17891235]
[1751199686870,0.9879,2456.5,2456.4,7.17891235]
[1751199687074,5.05873248,2456.5,2456.4,7.17891235]
[1751199689772,5.05873248,2456.5,2456.4,0.58891235]
[1751199690080,6.97167297,2456.5,2456.4,0.58891235]
[1751199691889,17.52167297,2456.5,2456.4,0.58891235]
[1751199697866,47.52167297,2456.5,2456.4,0.58891235]
[1751199699809,54.11167297,2456.5,2456.4,0.58891235]
[1751199707276,24.11167297,2456.5,2456.4,0.58891235]
[1751199711031,17.52167297,2456.5,2456.4,0.58891235]
[1751199711224,25.80367297,2456.5,2456.4,0.58891235]
[1751199711424,17.52167297,2456.5,2456.4,0.58891235]
[1751199711630,25.80367297,2456.5,2456.4,0.58891235]
[1751199713734,0.55,2456.3,2455.6,4.89221189]
[1751199714034,0.2032,2455.9,2455.6,4.89221189]
[1751199716428,0.2032,2455.9,2455.6,0.8199]
[1751199716634,0.2032,2455.9,2455.6,4.89221216]
[1751199721057,0.2032,2455.9,2455.6,4.89221193]
[1751199721226,0.2032,2455.9,2455.7,4.07207549]
[1751199721422,0.2032,2455.9,2455.6,4.89215467]
[1751199721646,0.2032,2455.9,2455.6,0.8199]
[1751199721860,4.27509939,2455.9,2455.6,0.8199]
[1751199723634,4.27509939,2455.9,2455.5,0.2032]
[1751199724664,5.98665779,2455.9,2455.4,11.44109072]
[1751199724840,0.2032,2455.8,2455.4,11.44109072]
[1751199725167,0.2032,2455.8,2455.5,4.07248957]
[1751199726256,0.2032,2455.8,2455.6,4.07229672]
[1751199727073,0.2032,2455.8,2455.7,0.7802]
[1751199730779,4.27533456,2455.8,2455.4,0.8015]
[1751199731092,0.2032,2455.6,2455.2,0.8015]
[1751199731259,10.0,2455.4,2455.0,0.8015]
[1751199731461,0.2032,2455.3,2455.0,7.3905]
[1751199732393,0.2032,2455.3,2455.0,0.8015]
[1751199732598,0.2032,2455.3,2455.0,7.3905]
[1751199733673,0.2032,2455.3,2455.1,4.07304309]
[1751199734190,0.2032,2455.3,2455.2,4.07298794]
[1751199734996,0.2032,2455.3,2455.1,4.07308039]
[1751199736166,13.12839468,2456.2,2455.7,4.07213583]
[1751199736394,0.2032,2455.8,2455.6,4.84403668]
[1751199736997,0.2032,2455.8,2455.7,4.07215865]
[1751199738280,0.2032,2455.9,2455.8,4.0719662]
[1751199739001,0.2032,2455.9,2455.7,4.07207799]
[1751199742805,0.2032,2455.9,2455.8,4.07199283]
[1751199745510,0.2032,2455.9,2455.7,4.07207308]
[1751199747032,0.2032,2455.9,2455.8,4.07199283]
[1751199747403,0.2032,2455.9,2455.7,4.07207896]
[1751199748331,0.2032,2455.9,2455.8,4.07199283]
[1751199750009,0.2032,2455.9,2455.7,4.07206438]
[1751199750545,0.2032,2455.9,2455.8,4.07199283]
[1751199751995,0.2032,2455.9,2455.7,4.07207631]
[1751199752529,0.2032,2455.9,2455.8,4.07199283]
[1751199753735,2.4724,2456.3,2456.0,4.07158542]
[1751199753900,0.2032,2456.2,2456.0,4.07158542]
[1751199757038,0.2032,2456.2,2455.9,0.7773]
[1751199757207,12.4415,2456.5,2456.1,4.07149546]
[1751199757527,0.2032,2456.3,2456.1,4.07149546]
[1751199757828,0.2032,2456.3,2456.1,4.07141413]
[1751199758032,10.0,2456.4,2456.2,4.07132969]
[1751199758225,0.2052,2456.5,2456.4,4.0709982]
[1751199759535,0.2052,2456.5,2456.3,4.8840452]
[1751199759912,1.0103,2456.5,2456.1,6.586]
[1751199760432,5.08119679,2456.5,2456.1,6.586]
[1751199761136,1.0103,2456.5,2456.1,10.65747474]
[1751199762630,0.2052,2456.5,2456.2,4.07132788]
[1751199767303,4.27604207,2456.5,2456.1,10.65740242]
[1751199768047,0.2052,2456.5,2456.1,10.65740242]
[1751199770235,0.2052,2456.5,2456.2,4.07132277]
[1751199770435,0.2052,2456.5,2456.1,10.65740245]
[1751199772869,0.2052,2456.5,2456.2,4.07132064]
[1751199773056,0.2052,2456.5,2456.1,10.65741174]
[1751199774150,0.2052,2456.5,2456.2,4.07131111]
[1751199774873,0.2052,2456.5,2456.3,4.07115185]
[1751199775871,0.2052,2456.5,2456.2,4.0712562]
[1751199780957,0.2052,2456.5,2456.1,6.586]
[1751199781452,0.2052,2456.5,2456.2,6.584]
[1751199781617,0.2052,2456.5,2456.2,10.65531115]
[1751199782451,0.2052,2456.5,2456.3,4.07112892]
[1751199784054,0.2052,2456.5,2456.4,4.0709982]
[1751199784362,0.2052,2456.5,2456.3,4.07112892]
[1751199784363,0.002,2456.5,2456.3,0.759]
[1751199784562,0.002,2456.5,2456.3,4.07116101]
[1751199785963,0.002,2456.5,2456.3,4.07106899]
[1751199786862,0.002,2456.5,2456.4,4.0709982]
[1751199789452,0.002,2456.5,2456.4,10.6539982]
[1751199794637,0.002,2456.5,2456.4,12.90173403]
[1751199794967,0.002,2456.5,2456.4,13.10493403]
[1751199805794,0.002,2456.5,2456.4,23.65493403]
[1751199807580,0.002,2456.5,2456.4,23.8594347]
[1751199808554,0.002,2456.5,2456.4,23.65493403]
[1751199809092,0.002,2456.5,2456.4,25.33693403]
[1751199809252,0.002,2456.5,2456.4,6.52193403]
[1751199809454,0.002,2456.5,2456.4,14.58373403]
[1751199809659,0.002,2456.5,2456.4,25.13373403]
[1751199811761,0.002,2456.5,2456.4,25.80858077]
[1751199813694,0.002,2456.5,2456.4,25.13373403]
[1751199815899,0.002,2456.5,2456.4,16.86873403]
[1751199816075,0.002,2456.5,2456.4,25.13273403]
[1751199817313,0.002,2456.5,2456.4,8.00473403]
[1751199817614,0.002,2456.5,2456.4,24.58273403]
[1751199819403,0.002,2456.5,2456.4,24.78593403]
[1751199819567,0.002,2456.5,2456.4,25.33593403]
[1751199823292,0.002,2456.5,2456.4,16.52193403]
[1751199823484,0.002,2456.5,2456.4,24.78593403]
[1751199828911,0.002,2456.5,2456.4,24.03003403]
[1751199843527,0.002,2456.5,2456.4,24.81363403]
[1751199847024,0.002,2456.5,2456.4,25.36363403]
[1751199850033,0.002,2456.5,2456.4,25.36163403]
[1751199858345,0.002,2456.5,2456.4,29.64963403]
[1751199858643,0.002,2456.5,2456.4,30.01163403]
[1751199859039,0.002,2456.5,2456.4,21.75063403]
[1751199859250,0.002,2456.5,2456.4,30.01063403]
[1751199864972,0.002,2456.5,2456.4,39.77563403]
[1751199868573,0.002,2456.5,2454.9,10.5338026]
[1751199868574,0.55,2456.2,2454.9,10.5338026]
[1751199868780,30.0,2455.9,2454.9,10.5338026]
[1751199868948,10.0,2455.7,2454.9,10.5338026]
[1751199869269,10.0,2455.7,2454.7,4.07471372]
[1751199869270,10.0,2455.5,2454.8,1.776]
[1751199869490,2.86926835,2455.4,2454.9,6.738]
[1751199869646,0.7622,2455.3,2454.9,6.738]
[1751199870189,0.7622,2455.3,2454.9,4.07346854]
[1751199870343,0.7622,2455.3,2455.0,8.513]
[1751199870540,0.7622,2455.3,2455.1,6.736]
[1751199870746,0.7622,2455.3,2455.1,10.80905111]
[1751199871245,0.7622,2455.3,2455.1,6.736]
[1751199877484,0.7622,2455.1,2454.8,1.777]
[1751199877697,4.8354393,2455.1,2454.9,6.727]
[1751199878853,0.7622,2455.1,2454.9,6.727]
[1751199879107,4.83535415,2455.1,2454.9,6.727]
[1751199879881,0.7622,2455.1,2455.0,6.731]
[1751199880072,1.67333198,2455.1,2455.0,6.731]
[1751199880671,0.7622,2455.4,2455.0,11.00751975]
[1751199881067,0.7622,2455.4,2455.2,0.2032]
[1751199881267,0.7622,2455.4,2455.3,6.729]
[1751199885585,0.7622,2455.4,2455.3,6.9322]
[1751199887807,0.7622,2455.4,2455.3,11.00502205]
[1751199888016,14.27509189,2455.9,2455.3,11.00502205]
[1751199888017,0.7622,2455.8,2455.3,11.00502205]
[1751199888305,0.7622,2455.8,2455.4,5.85063963]
[1751199888460,0.7622,2455.8,2455.4,1.778]
[1751199889297,4.07232448,2455.6,2455.3,0.2032]
[1751199889479,4.07232448,2455.6,2455.4,8.495]
[1751199889676,4.57595962,2455.7,2455.4,8.495]
[1751199889884,4.07233664,2455.6,2455.5,8.493]
[1751199890763,4.57597581,2455.7,2455.5,8.493]
[1751199890962,0.94102278,2455.6,2455.5,8.493]
[1751199892001,0.94102278,2455.6,2455.5,8.489]
[1751199893073,0.94102278,2455.6,2455.3,0.2032]
[1751199893487,0.94102278,2455.6,2455.4,8.488]
[1751199894210,5.01336566,2455.6,2455.3,0.2032]
[1751199894512,0.55170892,2455.5,2455.4,8.486]
[1751199894880,0.55170892,2455.5,2455.3,0.2032]
[1751199895109,0.55170892,2455.5,2455.4,8.485]
[1751199895618,0.55170892,2455.5,2455.4,8.484]
[1751199898014,0.55170892,2455.5,2455.3,0.2032]
[1751199898279,0.55170892,2455.5,2455.4,8.481]
[1751199898413,0.94102278,2455.6,2455.3,0.2032]
[1751199898726,0.94102278,2455.6,2455.4,8.457]
[1751199899230,0.94102278,2455.6,2455.3,0.2032]
[1751199899432,0.94102278,2455.6,2455.4,8.455]
[1751199901822,5.01336002,2455.6,2455.4,8.455]
[1751199902128,4.57382632,2455.5,2455.4,8.455]
[1751199902422,0.501336,2455.5,2455.4,8.455]
[1751199903319,0.501336,2455.5,2455.3,0.2032]
[1751199903533,4.83105618,2455.4,2455.3,0.2032]
[1751199903699,10.0,2454.8,2454.7,0.001]
[1751199903900,14.83205162,2454.8,2454.7,0.001]
[1751199909104,15.38205162,2454.8,2454.7,0.001]
[1751199913373,14.83205162,2454.8,2454.7,0.001]
[1751199914028,10.7584,2454.8,2454.7,0.001]
[1751199914386,10.9616,2454.8,2454.7,0.001]
[1751199914585,11.55747051,2454.8,2454.7,0.001]
[1751199917855,15.63112213,2454.8,2454.7,0.001]
[1751199918057,11.55747051,2454.8,2454.7,0.001]
[1751199922107,10.79907051,2454.8,2454.7,0.001]
[1751199922322,10.7622,2455.1,2454.7,4.07481757]
[1751199922521,0.2032,2455.0,2454.7,4.07481757]
[1751199922794,0.2032,2455.0,2454.7,0.001]
[1751199924612,0.2032,2455.0,2454.7,4.07478535]
[1751199924903,0.2032,2455.0,2454.9,4.07348568]
[1751199927011,10.0,2455.2,2455.0,4.0732573]
[1751199927220,11.53689329,2455.2,2454.9,4.07341632]
[1751199929111,11.53689329,2455.2,2455.0,6.719]
[1751199935206,2.90589174,2455.3,2455.0,6.719]
[1751199935207,0.2032,2455.3,2455.0,6.719]
[1751199935408,0.2032,2455.3,2455.1,4.0730831]
[1751199938526,0.2032,2455.3,2455.2,4.07298794]
[1751199938885,10.0,2455.7,2455.2,4.07298794]
[1751199939099,0.7622,2455.8,2455.0,6.719]
[1751199939100,0.2032,2455.6,2455.4,4.07256273]
[1751199939319,0.2032,2455.6,2455.5,6.702]
[1751199939620,5.14633417,2456.0,2455.5,10.77449032]
[1751199939799,0.2032,2455.7,2455.5,10.77449032]
[1751199944558,0.2032,2455.7,2455.6,4.07232448]
[1751199945855,0.2032,2455.7,2455.5,10.77441475]
[1751199946033,0.2032,2455.7,2455.6,4.07232448]
[1751199946455,0.2032,2455.9,2455.6,4.07232448]
[1751199947052,0.2032,2455.9,2455.5,10.97756485]
[1751199947252,0.2032,2455.9,2455.6,4.07230781]
[1751199949663,0.2032,2455.9,2455.5,10.97760039]
[1751199950555,0.2032,2455.9,2455.5,6.9052]
[1751199950759,0.2032,2455.9,2455.6,4.07231125]
[1751199950928,0.2032,2455.9,2455.5,10.97753863]
[1751199951129,0.2032,2455.9,2455.6,4.07232325]
[1751199958242,0.73814385,2455.9,2455.6,4.07232325]
[1751199960382,10.73814385,2455.9,2455.5,10.97761543]
[1751199960678,4.81000953,2455.9,2455.5,6.9052]
[1751199960858,4.07203846,2455.8,2455.6,6.671]
[1751199961374,4.07203846,2455.8,2455.7,6.671]
[1751199961375,14.07203846,2455.8,2455.7,6.671]
[1751199961569,17.06770599,2455.8,2455.7,6.671]
[1751199961879,12.99566753,2455.8,2455.7,6.671]
[1751199963474,17.06766036,2455.8,2455.7,6.671]
[1751199964063,12.99566753,2455.8,2455.7,6.671]
[1751199964647,12.99566753,2455.8,2455.5,0.2032]
[1751199964987,0.44810965,2455.7,2455.6,6.666]
[1751199965163,10.0,2455.8,2455.6,10.73832448]
[1751199966585,10.0,2455.8,2455.6,6.666]
[1751199966771,10.0,2455.8,2455.7,4.07215865]
[1751199968352,10.0,2455.8,2455.6,10.7382353]
[1751199969877,10.0,2455.8,2455.5,4.27568212]
[1751199970084,1.53497397,2455.8,2455.7,6.661]
[1751199970283,0.2032,2455.9,2455.7,6.661]
[1751199970863,10.2032,2455.9,2455.7,6.661]
[1751199971091,0.2032,2455.9,2455.7,10.73313047]
[1751199972798,0.2032,2455.9,2455.8,4.07199283]
[1751199973087,10.9654,2456.2,2455.8,0.2032]
[1751199973383,12.46905694,2456.2,2455.9,4.07181375]
[1751199973588,12.46905694,2456.2,2456.0,6.656]
[1751199973750,11.70685694,2456.2,2456.0,6.656]
[1751199974151,0.2032,2456.2,2456.0,10.7276552]
[1751199974692,0.50651746,2456.2,2456.0,6.656]
[1751199974853,0.2032,2456.2,2456.0,6.656]
[1751199975987,10.2032,2456.2,2456.0,6.656]
[1751199979494,10.50889929,2456.2,2456.0,6.656]
[1751199980304,10.2032,2456.2,2456.0,6.656]
[1751199980892,0.2032,2456.2,2456.0,10.72762941]
[1751199981674,0.2032,2456.2,2456.0,6.656]
[1751199982087,0.2032,2456.2,2456.0,10.72765533]
[1751199983487,0.2032,2456.2,2456.0,10.72762364]
[1751199983656,0.51033127,2456.2,2456.0,10.72762364]
[1751199984095,0.51033127,2456.2,2456.0,6.656]
[1751199985283,6.52315602,2456.2,2456.0,6.656]
[1751199985594,2.45181051,2456.2,2456.0,6.656]
[1751199986599,0.51033127,2456.2,2456.0,10.72760756]
[1751199987307,0.2032,2456.2,2456.0,6.656]
[1751199988099,0.2032,2456.2,2456.0,10.72764333]
[1751199989176,0.2032,2456.2,2456.0,6.656]
[1751199990778,0.2032,2456.2,2456.0,10.72762778]
[1751199991093,0.002,2456.5,2456.4,4.0709982]
[1751199991297,0.002,2456.5,2456.4,10.7079982]
[1751199996551,0.002,2456.5,2456.4,6.637]
[1751199997748,0.002,2456.5,2456.4,10.7079982]
[1751200000348,0.002,2456.5,2456.4,6.637]
[1751200001447,0.002,2456.5,2456.4,10.7079982]
[1751200001660,0.002,2456.5,2456.4,10.6979982]
[1751200008160,0.002,2456.5,2456.4,6.621]
[1751200008637,11.43619306,2456.5,2456.4,6.621]
[1751200008840,11.63939306,2456.5,2456.4,6.624]
[1751200009450,1.63939306,2456.5,2456.4,6.624]
[1751200009632,5.71022554,2456.5,2456.4,6.624]
[1751200011028,5.71022554,2456.5,2456.4,6.622]
[1751200011228,1.63939306,2456.5,2455.9,4.90001476]
[1751200011455,0.2032,2456.3,2456.1,4.0714236]
[1751200011849,0.2032,2456.3,2456.0,10.69256775]
[1751200012531,0.2032,2456.3,2456.1,4.07149334]
[1751200014756,0.2032,2456.3,2456.0,6.621]
[1751200014968,0.2032,2456.3,2456.0,10.69265192]
[1751200015760,0.2032,2456.3,2456.1,4.07147347]
[1751200017737,0.2032,2456.3,2456.2,6.617]
[1751200019871,0.2032,2456.3,2456.1,4.07147347]
[1751200020071,0.2032,2456.3,2456.2,6.618]
[1751200021986,0.2032,2456.3,2456.1,4.07148596]
[1751200022164,0.2032,2456.3,2456.2,6.618]
[1751200022766,0.2032,2456.3,2456.0,4.07156513]
[1751200023084,0.2032,2456.3,2456.1,6.618]
[1751200023582,0.2032,2456.3,2456.1,10.6894911]
[1751200023889,0.2032,2456.3,2456.1,6.618]
[1751200024995,0.2032,2456.3,2456.1,10.6894677]
[1751200025683,0.2032,2456.3,2456.1,4.0714677]
[1751200026085,0.2032,2456.3,2456.2,6.618]
[1751200036493,0.2032,2456.3,2456.2,10.68932969]
[1751200036809,0.2032,2456.3,2456.2,6.618]
[1751200038978,0.2032,2456.3,2456.2,6.617]
[1751200041111,5.03623661,2456.3,2456.2,6.617]
[1751200041311,1.96591309,2456.3,2456.2,6.617]
[1751200041810,1.96591309,2456.3,2455.9,4.07181977]
[1751200041991,0.2032,2456.1,2456.0,6.617]
[1751200042594,0.2032,2456.1,2456.0,10.68866123]
[1751200043014,0.2032,2456.1,2456.0,6.617]
[1751200044718,0.2032,2456.1,2455.7,5.03857258]
[1751200044923,0.2032,2456.1,2455.8,6.617]
[1751200045417,4.83303505,2456.3,2455.9,6.617]
[1751200045715,4.55472346,2456.2,2455.9,6.617]
[1751200048217,4.55472346,2456.2,2455.7,4.07207258]
[1751200048432,0.2032,2455.9,2455.8,6.617]
[1751200048938,0.2032,2455.9,2455.8,6.616]
[1751200049993,0.2032,2455.9,2455.8,6.617]
[1751200051236,0.2032,2455.9,2455.8,10.68899283]
[1751200051535,0.2032,2455.9,2455.8,6.617]
[1751200051691,0.2032,2455.9,2455.6,4.07228109]
[1751200051894,1.18968765,2455.9,2455.3,0.8086]
[1751200052098,0.2032,2455.6,2455.4,6.616]
[1751200054823,0.9,2455.5,2455.4,6.616]
[1751200055026,0.9,2455.5,2455.4,6.617]
[1751200065736,0.9,2455.5,2455.4,10.68965618]
[1751200073700,0.9,2455.5,2455.3,4.07272484]
[1751200073906,0.9,2455.5,2455.4,6.616]
[1751200076405,0.9,2455.5,2455.4,10.68865618]
[1751200076601,0.9,2455.5,2455.4,6.616]
[1751200076806,0.9,2455.5,2455.4,10.68865618]
[1751200078972,0.9,2455.5,2455.4,6.616]
[1751200080018,1.4175379,2455.5,2455.2,0.79240019]
[1751200080220,0.9,2455.5,2455.2,0.58920019]
[1751200080428,4.83502205,2455.3,2455.2,0.58920019]
[1751200080619,4.83502205,2455.3,2455.2,7.20420019]
[1751200080924,5.8157906,2455.3,2455.2,7.20420019]
[1751200081129,6.66401681,2455.3,2455.2,0.58920019]
[1751200081319,16.66401681,2455.3,2455.2,0.58920019]
[1751200082297,4.62348568,2454.9,2454.8,0.001]
[1751200082497,16.25536909,2454.9,2454.8,0.001]
[1751200084110,16.4586435,2454.9,2454.8,0.001]
[1751200089638,16.25536909,2454.9,2454.8,0.001]
[1751200089841,10.86968341,2454.9,2454.8,0.001]
[1751200095156,10.0,2454.9,2454.8,0.001]
[1751200095323,10.2032,2454.9,2454.8,0.8121]
[1751200095526,10.2032,2454.9,2454.8,0.001]
[1751200101355,15.03888568,2454.9,2454.8,0.001]
[1751200107859,14.27668568,2454.9,2454.8,0.001]
[1751200108074,16.35849378,2454.9,2454.8,0.001]
[1751200111571,12.2850081,2454.9,2454.8,0.001]
[1751200111729,10.2032,2454.9,2454.8,4.07465162]
[1751200112852,10.90499476,2455.3,2454.9,4.073396]
[1751200113055,0.2032,2455.0,2454.9,4.073396]
[1751200113872,0.2032,2455.0,2454.9,4.873196]
[1751200116965,1.1032,2455.0,2454.9,4.873196]
[1751200119971,1.1032,2455.0,2454.9,0.7998]
[1751200120465,1.1032,2455.0,2454.9,4.87328568]
[1751200127303,1.1032,2455.0,2454.9,0.7998]
[1751200127672,1.1032,2455.0,2454.9,4.87328568]
[1751200131489,1.1032,2455.0,2454.9,0.7998]
[1751200131690,2.62082126,2455.0,2454.9,6.611]
[1751200131989,1.1032,2455.0,2454.9,6.611]
[1751200139195,1.1032,2455.0,2454.8,0.001]
[1751200139398,1.1032,2455.0,2454.9,6.611]
[1751200139563,1.1032,2455.0,2454.9,6.61]
[1751200139762,2.69703978,2455.0,2454.9,6.61]
[1751200142592,2.69703978,2455.0,2454.8,0.001]
[1751200142793,0.2032,2454.9,2454.8,6.611]
[1751200145664,0.2032,2454.9,2454.8,10.68465162]
[1751200145872,0.9,2455.0,2454.9,0.7558]
[1751200146471,0.9,2455.0,2454.8,6.611]
[1751200147404,0.9,2455.0,2454.8,0.001]
[1751200147605,0.9,2455.0,2454.9,6.61]
[1751200157719,0.9,2455.0,2454.9,10.68348568]
[1751200157886,0.9,2455.0,2454.9,6.61]
[1751200162718,0.9,2455.0,2454.9,10.68348568]
[1751200163721,0.9,2455.0,2454.9,6.61]
[1751200166716,0.9,2455.0,2454.8,4.07456981]
[1751200166890,0.9,2455.0,2454.9,6.607]
[1751200167994,0.9,2455.0,2454.9,11.46428568]
[1751200168200,8.42142621,2455.3,2455.0,4.07321912]
[1751200168515,8.98042621,2455.3,2454.8,0.001]
[1751200168746,0.2032,2455.1,2454.9,6.606]
[1751200170429,0.2032,2455.1,2454.8,0.001]
[1751200170595,1.52886206,2455.1,2454.9,6.606]
[1751200171622,1.52886206,2455.1,2454.8,0.001]
[1751200171794,1.52886206,2455.1,2455.0,6.606]
[1751200176231,1.52886206,2455.1,2455.0,6.605]
[1751200176533,1.52886206,2455.1,2454.8,0.001]
[1751200176690,0.2032,2454.9,2454.8,0.001]
[1751200176894,0.2032,2454.9,2454.8,6.606]
[1751200181606,0.2032,2454.9,2454.8,7.4011]
[1751200183029,0.2032,2454.9,2454.8,11.47475162]
[1751200184735,10.0,2455.0,2454.8,11.47475162]
[1751200185032,10.2032,2455.1,2454.8,11.47475162]
[1751200185535,10.2032,2455.1,2454.8,7.4011]
[1751200185723,13.02982657,2455.1,2454.8,7.4011]
[1751200186834,13.02982657,2455.1,2454.8,11.47474164]
[1751200188038,13.02982657,2455.1,2454.8,7.4011]
[1751200188416,13.02982657,2455.1,2454.8,11.47473609]
[1751200189139,13.02982657,2455.1,2454.8,7.4011]
[1751200189832,10.0,2454.9,2454.8,6.606]
[1751200190136,11.91429446,2455.0,2454.8,0.001]
[1751200190337,14.83559528,2455.0,2454.8,6.605]
[1751200190834,4.07348568,2454.9,2454.8,6.605]
[1751200190998,4.8356062,2455.0,2454.8,6.605]
[1751200193921,14.07324118,2455.1,2454.8,6.605]
[1751200194128,6.13410877,2455.0,2454.8,6.605]
[1751200194329,10.0,2454.9,2454.8,6.605]
[1751200194543,10.0,2454.9,2454.8,6.604]
[1751200195441,10.0,2454.9,2454.8,6.26279465]
[1751200197914,10.0,2454.9,2454.7,0.001]
[1751200197915,0.2032,2454.8,2454.7,0.001]
[1751200198112,2.12117251,2454.8,2454.7,6.604]
[1751200201151,2.12117251,2454.8,2454.7,0.001]
[1751200201355,2.12117251,2454.8,2454.7,6.603]
[1751200203156,6.19482413,2454.8,2454.7,0.001]
[1751200203360,14.11482413,2454.8,2454.7,0.001]
[1751200203828,14.87702413,2454.8,2454.7,0.001]
[1751200204447,10.04117251,2454.8,2454.7,0.001]
[1751200205431,14.11482413,2454.8,2454.7,0.001]
[1751200206962,10.04117251,2454.8,2454.7,0.001]
[1751200208163,14.11482413,2454.8,2454.7,0.001]
[1751200210364,10.04117251,2454.8,2454.7,0.001]
[1751200211167,14.11482413,2454.8,2454.7,0.001]
[1751200211851,25.42702413,2454.8,2454.7,0.001]
[1751200218372,24.11482413,2454.8,2454.7,0.001]
[1751200218540,18.1232,2454.8,2454.7,0.001]
[1751200218743,22.19685162,2454.8,2454.7,0.001]
[1751200231484,22.74685162,2454.8,2454.7,0.001]
[1751200231695,23.50905162,2454.8,2454.7,0.001]
[1751200247205,22.74685162,2454.8,2454.7,0.001]
[1751200249009,18.1232,2454.8,2454.7,0.001]
[1751200249198,22.19685162,2454.8,2454.7,0.001]
[1751200252221,24.99326997,2454.8,2454.7,0.001]
[1751200252525,25.75546997,2454.8,2454.7,0.001]
[1751200253210,24.99326997,2454.8,2454.7,0.001]
[1751200253409,20.91961835,2454.8,2454.7,0.001]
[1751200253592,24.99326997,2454.8,2454.7,0.001]
[1751200254899,20.91961835,2454.8,2454.7,0.001]
[1751200255899,18.1232,2454.8,2454.7,0.001]
[1751200256093,7.92,2455.1,2454.7,0.8174]
[1751200256281,7.92,2455.1,2454.9,4.88988568]
[1751200256482,7.92,2455.1,2455.0,4.07331975]
[1751200257208,7.92,2455.1,2454.9,4.88980256]
[1751200257399,7.92,2455.1,2455.0,4.07331975]
[1751200257603,7.92,2455.1,2455.0,4.88971975]
[1751200259100,7.92,2455.1,2455.0,0.8164]
[1751200259494,8.2293659,2455.3,2455.0,0.8164]
[1751200259695,7.92,2455.3,2455.0,0.8164]
[1751200260279,8.22441316,2455.3,2455.0,0.8164]
[1751200261206,12.2972546,2455.3,2454.8,4.89127317]
[1751200261511,8.22441316,2455.3,2455.0,4.07331859]
[1751200261726,8.22441316,2455.3,2455.1,0.8177]
[1751200261928,8.22441316,2455.3,2455.1,4.89078902]
[1751200262418,8.22441316,2455.3,2455.1,0.8177]
[1751200263415,8.22441316,2455.3,2455.1,4.89083802]
[1751200263715,18.22441316,2455.3,2455.2,4.96940162]
[1751200263915,18.22441316,2455.3,2455.2,4.07298794]
[1751200264287,18.22441316,2455.3,2454.7,0.8187]